{"text_format":"1","workbook":"xlsx","n_sheets":3,"sheets":["AIDE","Technique et combat","Base-INFO"],"not_rendered":{"charts":0,"images":4,"macros":1,"external_links":0,"defined_names":9,"comments":2,"pivot_tables":0},"unopened":[],"bounds":{"document_bytes":16777216,"sheet_cells":100000,"rows_first":2000,"rows_last":500,"rows_between":2000,"halvings":0,"cell_chars":16384,"cell_head_chars":4096},"cells_cut":0,"cells_raw":0,"read":"whole","date_system":"1900"}

{"sheet":"AIDE","index":0,"n_rows":115,"n_cols":11,"rows_kept":115,"cut":false,"hidden":false,"merged":[[2,10,9,17],[18,1,18,17]]}
[]
[]
[null,null,null,null,null,null,null,null,null,null,"\nAfin de vous aider lors de la saisie, il a été intégré des nouvelles fonctions et informations d'aide à la saisie, dont voici les principales descriptions\n\nAttention, ne pas ajouter/supprimer modifier l'ordre des colonnes sous peine d'inscription erronnée"]
[]
[]
[]
[]
[]
[]
[]
[]
[]
[]
[]
[null,"Quelques règles à prendre en compte au moment de l' inscription"]
[]
[]
[null,"Lorsqu’il y a des compétiteurs de catégories d’âge différentes dans une même équipe, cette dernière est classée dans la catégorie d’âge du compétiteur le plus âgé"]
[null,"A contrario, le sous-classement n'est pas autorisé  --> ex : un MINIME ceinture BF 3 ne pourra pas réaliser un QUYEN SYNCHRO Thap tu quyen à 3\nMais pourra réaliser un QUYEN SYNCHRO Long Ho quyen à 3, donc l'équipe auquel il est rattaché ne pourra concourir que dans sa catégorie"]
[null,"Un Song luyen Mixte sera enregistré en catégorie Masculine"]
[]
[]
[]
[null,"Informations à lire au préalable avant la saisie dans l'onglet technique et combat"]
[]
[]
[]
[]
[]
[]
[]
[]
[]
[]
[]
[]
[]
[]
[]
[]
[]
[]
[]
[]
[]
[]
[]
[]
[]
[]
[]
[]
[]
[]
[]
[]
[]
[]
[]
[]
[]
[]
[]
[]
[]
[]
[]
[]
[]
[]
[]
[]
[]
[]
[]
[]
[]
[]
[]
[]
[]
[]
[]
[]
[]
[]
[]
[]
[]
[]
[]
[]
[]
[]
[]
[]
[]
[]
[]
[]
[]
[]
[]
[]
[]
[]
[]
[]
[]
[]
[]
[]
[]
[]
[null,"Exemple de saisie réalisée (capture version 2017)"]

{"sheet":"Technique et combat","index":1,"n_rows":64,"n_cols":80,"rows_kept":64,"cut":false,"hidden":false,"merged":[[4,18,4,40],[3,36,3,38],[5,2,5,3],[2,7,2,10],[3,7,3,10],[4,7,4,10],[5,7,5,10],[3,2,3,3],[2,2,2,3],[1,2,1,4],[1,7,1,10],[1,34,1,42],[2,20,2,22],[3,20,3,22],[2,28,2,32],[3,28,3,32],[2,12,2,16],[3,12,3,16],[2,36,2,38],[1,18,1,24]]}
[]
[null,null,"Tableau d'inscription",null,null,null,"N° club FFKDA  : ",null,null,null,null,null,null,null,null,null,null,null,"Indiquer le n° de l'équipe ",null,null,null,null,null,null,null,"Combat",null,null,null,null,null,null,null,"Indiquer le n° de l'équipe "]
[null,null," COUPE DE FRANCE VOVINAM VIET VO  DAO  - MAI 2022",null,null,null,"Ville  : ",null,null,null,null,null,"Quyen",null,null,null,null,null,"Song luyen",null," quyen synchro à 3",null,null,null,"Da luyen",null,"Féminin",null,"Quyen",null,null,null,null,null,"Song luyen",null," quyen synchro à 3",null,null,null,"Da luyen",null,"Tu vé nu gioi",null,null,"Minime BF 3 et J",null,null,null,"X","X",null,"X",null,"X",null,null,null,"X",null,null,null,null,null,null,"X","X",null,"X",null,null,null,"X",null,"X",null,"X",null,"Minime CB3 ET CJ"]
[null,null,"POUSSINS, PUPILLES, BENJAMINS, MINIMES",null,null,null,"Responsable inscription  : ",null,null,null,null,null,"Masculin",null,null,null,null,null,"Masculin",null,"Masculin",null,null,null,"Masculin",null,"Masculin",null,"Féminin",null,null,null,null,null,"Féminin",null,"Féminin",null,null,null,"Féminin",null,"Féminin",null,null,"Minime BF 1 ET BF 2",null,null,null,"X","X",null,"X",null,"X",null,null,null,"X",null,null,null,null,null,null,"X","X",null,"X",null,null,null,"X",null,"X",null,"X",null,"Minime CB1 ET CB2"]
[null,null,null,null,null,null,"Téléphone : ",null,null,null,null,null,null,null,null,null,null,null,"Indiquer le même N° pour chaque membre d'une équipe, (n° idem  également en cas d'équipe mixte en song luyen)",null,null,null,null,null,null,null,null,null,null,null,null,null,null,null,null,null,null,null,null,null,null,null,"Adv. Masc.",null,null,null,1,2,2,1,1,null,1,null,1,null,1,null,1,null,1,null,1,2,2,1,1,null,1,null,1,null,1,null,1,null,1,null,"test TYPE CEINTURE MINIME"]
[null,null,"Cellule sur fond gris : épreuve incompatible avec la catégorie ou le sexe",null,null,null,"Email  :",null,null,null,null,null,"PO","PU \nBE","PU \nBE","MI","MI",null,"PU BE MI",null,"MI",null,"PU BE",null,"PU BE MI",null,"PO PU BE MI",null,"PO","PU \nBE","PU \nBE","MI","MI",null,"PU BE MI",null,"PU BE",null," MI",null,"PU BE MI",null,"MI",null,null,null,"PO","PU BE","PU BE","MI","MI",null,"PU BE MI",null,"MI",null,"PU BE",null,"PU BE MI",null,"PO PU BE MI",null,"PO","PU BE","PU BE","MI","MI",null,"PU BE MI",null,"PU BE",null," MI",null,"PU BE MI",null,"MI"]
["Club","Ville","NOM","PRENOM","SEXE\nF \nou \nM","Année  naissance\n\n(XXXX)","N° licence FFKDA","Poids","Grade","Indication catégorie","Indication catégorie combat",null,"1/2 Nhap Mon Quyen","Nhap Mon Quyen","Thap Tu Quyen","Nhap Mon Quyen et Thap Tu Quyen","Long Ho Quyen et Tinh Hoa Luong Nghi Kiem Phap",null,"Song luyên môt ",null,"Quyen dong doi nam\nThap tu quyen à 3",null,"Quyen dong doi nam\nKhoi Quyen à 3",null,"Daluyen",null,"Combat",null,"1/2 Nhap Mon Quyen","Nhap Mon Quyen","Thap Tu Quyen","Nhap Mon Quyen et Thap Tu Quyen","Long Ho Quyen et Tinh Hoa Luong Nghi Kiem Phap",null,"Song luyên môt ",null,"Quyen dong doi nu\nKhoi Quyen à 3",null,"Quyen dong doi nam\nThap tu quyen à 3",null,"Da luyen",null,"Tu vé nu gioi\n1 fille contre\n1 homme",null,null,null,"1/2 Nhap Mon Quyen","Nhap Mon Quyen","Thap Tu Quyen","Nhap Mon Quyen et Thap Tu Quyen","Long Ho Quyen et Tinh Hoa Luong Nghi Kiem Phap",null,"Song luyên môt ",null,"Quyen dong doi nam\nThap tu quyen à 3\n",null,"Quyen dong doi nam\nKhoi Quyen à 3",null,"Da luyen",null,"Combat",null,"1/2 Nhap Mon Quyen","Nhap Mon Quyen","Thap Tu Quyen","Nhap Mon Quyen et Thap Tu Quyen","Long Ho Quyen et Tinh Hoa Luong Nghi Kiem Phap",null,"Song luyên môt ",null,"Quyen dong doi nu\nKhoi Quyen à 3",null,"Quyen dong doi nam\nThap tu quyen à 3",null,"Da luyen",null,"Tu vé nu gioi\n1 fille contre\n1 homme",null,"test \nBF1 et BF2","test \nBF3 et CJ"]
[{"$f":"$H$2","v":0},{"$f":"$H$3","v":0},"Nom -Exemple 1","prenom 1","M",2008,"12345678",35,"BF 2",{"$f":"IFERROR(VLOOKUP(F8,choix_categorie,2,FALSE),\"\")","v":"MINIME"},{"$f":"IF(AA8<>\"\",IFERROR(VLOOKUP(E8&LEFT(J8,2)&H8,choix_poids,2),\"\"),\"\")","v":"Moins de 40 kg"},null,null,null,null,"X",null,null,1,null,null,null,null,null,null,null,"X",null,null,null,null,null,null,null,null,null,null,null,null,null,null,null,null,null,null,null,{"$f":"IF($E8=\"M\",IF(ISERROR(SEARCH(LEFT($J8,2),M$6,1)),0,IF($J8<>\"\",IF(LEFT($J8,2)<>\"MI\",1,CHOOSE(AU$5,1,$CA8,$CB8)),\"\")),0)","v":0},{"$f":"IF($E8=\"M\",IF(ISERROR(SEARCH(LEFT($J8,2),N$6,1)),0,IF($J8<>\"\",IF(LEFT($J8,2)<>\"MI\",1,CHOOSE(AV$5,1,$CA8,$CB8)),\"\")),0)","v":0},{"$f":"IF($E8=\"M\",IF(ISERROR(SEARCH(LEFT($J8,2),O$6,1)),0,IF($J8<>\"\",IF(LEFT($J8,2)<>\"MI\",1,CHOOSE(AW$5,1,$CA8,$CB8)),\"\")),0)","v":0},{"$f":"IF($E8=\"M\",IF(ISERROR(SEARCH(LEFT($J8,2),P$6,1)),0,IF($J8<>\"\",IF(LEFT($J8,2)<>\"MI\",1,CHOOSE(AX$5,1,$CA8,$CB8)),\"\")),0)","v":1},{"$f":"IF($E8=\"M\",IF(ISERROR(SEARCH(LEFT($J8,2),Q$6,1)),0,IF($J8<>\"\",IF(LEFT($J8,2)<>\"MI\",1,CHOOSE(AY$5,1,$CA8,$CB8)),\"\")),0)","v":1},null,{"$f":"IF($E8=\"M\",IF(ISERROR(SEARCH(LEFT($J8,2),S$6,1)),0,IF($J8<>\"\",IF(LEFT($J8,2)<>\"MI\",1,CHOOSE(BA$5,1,$CA8,$CB8)),\"\")),0)","v":1},null,{"$f":"IF($E8=\"M\",IF(ISERROR(SEARCH(LEFT($J8,2),U$6,1)),0,IF($J8<>\"\",IF(LEFT($J8,2)<>\"MI\",1,CHOOSE(BC$5,1,$CA8,$CB8)),\"\")),0)","v":1},null,{"$f":"IF($E8=\"M\",IF(ISERROR(SEARCH(LEFT($J8,2),W$6,1)),0,IF($J8<>\"\",IF(LEFT($J8,2)<>\"MI\",1,CHOOSE(BE$5,1,$CA8,$CB8)),\"\")),0)","v":0},null,{"$f":"IF($E8=\"M\",IF(ISERROR(SEARCH(LEFT($J8,2),Y$6,1)),0,IF($J8<>\"\",IF(LEFT($J8,2)<>\"MI\",1,CHOOSE(BG$5,1,$CA8,$CB8)),\"\")),0)","v":1},null,{"$f":"IF(ISERROR(SEARCH(LEFT($J8,2),AA$6,1)),0,IF($J8<>\"\",IF(LEFT($J8,2)<>\"MI\",1,CHOOSE(BI$5,1,$CA8,$CB8)),\"\"))","v":1},null,{"$f":"IF($E8=\"F\",IF(ISERROR(SEARCH(LEFT($J8,2),AC$6,1)),0,IF($J8<>\"\",IF(LEFT($J8,2)<>\"MI\",1,CHOOSE(BK$5,1,$CA8,$CB8)),\"\")),0)","v":0},{"$f":"IF($E8=\"F\",IF(ISERROR(SEARCH(LEFT($J8,2),AD$6,1)),0,IF($J8<>\"\",IF(LEFT($J8,2)<>\"MI\",1,CHOOSE(BL$5,1,$CA8,$CB8)),\"\")),0)","v":0},{"$f":"IF($E8=\"F\",IF(ISERROR(SEARCH(LEFT($J8,2),AE$6,1)),0,IF($J8<>\"\",IF(LEFT($J8,2)<>\"MI\",1,CHOOSE(BM$5,1,$CA8,$CB8)),\"\")),0)","v":0},{"$f":"IF($E8=\"F\",IF(ISERROR(SEARCH(LEFT($J8,2),AF$6,1)),0,IF($J8<>\"\",IF(LEFT($J8,2)<>\"MI\",1,CHOOSE(BN$5,1,$CA8,$CB8)),\"\")),0)","v":0},{"$f":"IF($E8=\"F\",IF(ISERROR(SEARCH(LEFT($J8,2),AG$6,1)),0,IF($J8<>\"\",IF(LEFT($J8,2)<>\"MI\",1,CHOOSE(BO$5,1,$CA8,$CB8)),\"\")),0)","v":0},null,{"$f":"IF($E8=\"F\",IF(ISERROR(SEARCH(LEFT($J8,2),AI$6,1)),0,IF($J8<>\"\",IF(LEFT($J8,2)<>\"MI\",1,CHOOSE(BQ$5,1,$CA8,$CB8)),\"\")),0)","v":0},null,{"$f":"IF($E8=\"F\",IF(ISERROR(SEARCH(LEFT($J8,2),AK$6,1)),0,IF($J8<>\"\",IF(LEFT($J8,2)<>\"MI\",1,CHOOSE(BS$5,1,$CA8,$CB8)),\"\")),0)","v":0},null,{"$f":"IF($E8=\"F\",IF(ISERROR(SEARCH(LEFT($J8,2),AM$6,1)),0,IF($J8<>\"\",IF(LEFT($J8,2)<>\"MI\",1,CHOOSE(BU$5,1,$CA8,$CB8)),\"\")),0)","v":0},null,{"$f":"IF($E8=\"F\",IF(ISERROR(SEARCH(LEFT($J8,2),AO$6,1)),0,IF($J8<>\"\",IF(LEFT($J8,2)<>\"MI\",1,CHOOSE(BW$5,1,$CA8,$CB8)),\"\")),0)","v":0},null,{"$f":"IF(ISERROR(SEARCH(LEFT($J8,2),AQ$6,1)),0,IF($J8<>\"\",IF(LEFT($J8,2)<>\"MI\",1,CHOOSE(BY$5,1,$CA8,$CB8)),\"\"))","v":1},null,{"$f":"IF(OR(AND(LEFT(J8,2)=\"MI\",RIGHT(I8,1) = \"1\"),AND(LEFT(J8,2)=\"MI\",RIGHT(I8,1) = \"2\")),1,0)","v":1},{"$f":"IF(OR(AND(LEFT(J8,2)=\"MI\",RIGHT(I8,1) = \"3\"),AND(LEFT(J8,2)=\"MI\",RIGHT(I8,1) = \"J\")),1,0)","v":0}]
[0,0,null,null,null,null,null,null,null,{"$f":"IFERROR(VLOOKUP(F9,choix_categorie,2,FALSE),\"\")","v":""},"",null,null,null,null,null,null,null,null,null,null,null,null,null,null,null,null,null,null,null,null,null,null,null,null,null,null,null,null,null,null,null,null,null,null,null,{"$f":"IF($E9=\"M\",IF(ISERROR(SEARCH(LEFT($J9,2),M$6,1)),0,IF($J9<>\"\",IF(LEFT($J9,2)<>\"MI\",1,CHOOSE(AU$5,1,$CA9,$CB9)),\"\")),0)","v":0},0,0,{"$f":"IF($E9=\"M\",IF(ISERROR(SEARCH(LEFT($J9,2),P$6,1)),0,IF($J9<>\"\",IF(LEFT($J9,2)<>\"MI\",1,CHOOSE(AX$5,1,$CA9,$CB9)),\"\")),0)","v":0},0,null,0,null,0,null,0,null,{"$f":"IF($E9=\"M\",IF(ISERROR(SEARCH(LEFT($J9,2),Y$6,1)),0,IF($J9<>\"\",IF(LEFT($J9,2)<>\"MI\",1,CHOOSE(BG$5,1,$CA9,$CB9)),\"\")),0)","v":0},null,"",null,0,{"$f":"IF($E9=\"F\",IF(ISERROR(SEARCH(LEFT($J9,2),AD$6,1)),0,IF($J9<>\"\",IF(LEFT($J9,2)<>\"MI\",1,CHOOSE(BL$5,1,$CA9,$CB9)),\"\")),0)","v":0},0,0,0,null,0,null,0,null,0,null,0,null,"",null,{"$f":"IF(OR(AND(LEFT(J9,2)=\"MI\",RIGHT(I9,1) = \"1\"),AND(LEFT(J9,2)=\"MI\",RIGHT(I9,1) = \"2\")),1,0)","v":0},{"$f":"IF(OR(AND(LEFT(J9,2)=\"MI\",RIGHT(I9,1) = \"3\"),AND(LEFT(J9,2)=\"MI\",RIGHT(I9,1) = \"J\")),1,0)","v":0}]
[0,0,null,null,null,null,null,null,null,"","",null,null,null,null,null,null,null,null,null,null,null,null,null,null,null,null,null,null,null,null,null,null,null,null,null,null,null,null,null,null,null,null,null,null,null,0,0,0,0,0,null,0,null,0,null,0,null,0,null,"",null,0,0,0,0,0,null,0,null,0,null,0,null,0,null,"",null,0,0]
[0,0,null,null,null,null,null,null,null,"","",null,null,null,null,null,null,null,null,null,null,null,null,null,null,null,null,null,null,null,null,null,null,null,null,null,null,null,null,null,null,null,null,null,null,null,0,0,0,0,0,null,0,null,0,null,0,null,0,null,"",null,0,0,0,0,0,null,0,null,0,null,0,null,0,null,"",null,0,0]
[0,0,null,null,null,null,null,null,null,"","",null,null,null,null,null,null,null,null,null,null,null,null,null,null,null,null,null,null,null,null,null,null,null,null,null,null,null,null,null,null,null,null,null,null,null,0,0,0,0,0,null,0,null,0,null,0,null,0,null,"",null,0,0,0,0,0,null,0,null,0,null,0,null,0,null,"",null,0,0]
[0,0,null,null,null,null,null,null,null,"","",null,null,null,null,null,null,null,null,null,null,null,null,null,null,null,null,null,null,null,null,null,null,null,null,null,null,null,null,null,null,null,null,null,null,null,0,0,0,0,0,null,0,null,0,null,0,null,0,null,"",null,0,0,0,0,0,null,0,null,0,null,0,null,0,null,"",null,0,0]
[0,0,null,null,null,null,null,null,null,"","",null,null,null,null,null,null,null,null,null,null,null,null,null,null,null,null,null,null,null,null,null,null,null,null,null,null,null,null,null,null,null,null,null,null,null,0,0,0,0,0,null,0,null,0,null,0,null,0,null,"",null,0,0,0,0,0,null,0,null,0,null,0,null,0,null,"",null,0,0]
[0,0,null,null,null,null,null,null,null,"","",null,null,null,null,null,null,null,null,null,null,null,null,null,null,null,null,null,null,null,null,null,null,null,null,null,null,null,null,null,null,null,null,null,null,null,0,0,0,0,0,null,0,null,0,null,0,null,0,null,"",null,0,0,0,0,0,null,0,null,0,null,0,null,0,null,"",null,0,0]
[0,0,null,null,null,null,null,null,null,"","",null,null,null,null,null,null,null,null,null,null,null,null,null,null,null,null,null,null,null,null,null,null,null,null,null,null,null,null,null,null,null,null,null,null,null,0,0,0,0,0,null,0,null,0,null,0,null,0,null,"",null,0,0,0,0,0,null,0,null,0,null,0,null,0,null,"",null,0,0]
[0,0,null,null,null,null,null,null,null,"","",null,null,null,null,null,null,null,null,null,null,null,null,null,null,null,null,null,null,null,null,null,null,null,null,null,null,null,null,null,null,null,null,null,null,null,0,0,0,0,0,null,0,null,0,null,0,null,0,null,"",null,0,0,0,0,0,null,0,null,0,null,0,null,0,null,"",null,0,0]
[0,0,null,null,null,null,null,null,null,"","",null,null,null,null,null,null,null,null,null,null,null,null,null,null,null,null,null,null,null,null,null,null,null,null,null,null,null,null,null,null,null,null,null,null,null,0,0,0,0,0,null,0,null,0,null,0,null,0,null,"",null,0,0,0,0,0,null,0,null,0,null,0,null,0,null,"",null,0,0]
[0,0,null,null,null,null,null,null,null,"","",null,null,null,null,null,null,null,null,null,null,null,null,null,null,null,null,null,null,null,null,null,null,null,null,null,null,null,null,null,null,null,null,null,null,null,0,0,0,0,0,null,0,null,0,null,0,null,0,null,"",null,0,0,0,0,0,null,0,null,0,null,0,null,0,null,"",null,0,0]
[0,0,null,null,null,null,null,null,null,"","",null,null,null,null,null,null,null,null,null,null,null,null,null,null,null,null,null,null,null,null,null,null,null,null,null,null,null,null,null,null,null,null,null,null,null,0,0,0,0,0,null,0,null,0,null,0,null,0,null,"",null,0,0,0,0,0,null,0,null,0,null,0,null,0,null,"",null,0,0]
[0,0,null,null,null,null,null,null,null,"","",null,null,null,null,null,null,null,null,null,null,null,null,null,null,null,null,null,null,null,null,null,null,null,null,null,null,null,null,null,null,null,null,null,null,null,0,0,0,0,0,null,0,null,0,null,0,null,0,null,"",null,0,0,0,0,0,null,0,null,0,null,0,null,0,null,"",null,0,0]
[0,0,null,null,null,null,null,null,null,"","",null,null,null,null,null,null,null,null,null,null,null,null,null,null,null,null,null,null,null,null,null,null,null,null,null,null,null,null,null,null,null,null,null,null,null,0,0,0,0,0,null,0,null,0,null,0,null,0,null,"",null,0,0,0,0,0,null,0,null,0,null,0,null,0,null,"",null,0,0]
[0,0,null,null,null,null,null,null,null,"","",null,null,null,null,null,null,null,null,null,null,null,null,null,null,null,null,null,null,null,null,null,null,null,null,null,null,null,null,null,null,null,null,null,null,null,0,0,0,0,0,null,0,null,0,null,0,null,0,null,"",null,0,0,0,0,0,null,0,null,0,null,0,null,0,null,"",null,0,0]
[0,0,null,null,null,null,null,null,null,"","",null,null,null,null,null,null,null,null,null,null,null,null,null,null,null,null,null,null,null,null,null,null,null,null,null,null,null,null,null,null,null,null,null,null,null,0,0,0,0,0,null,0,null,0,null,0,null,0,null,"",null,0,0,0,0,0,null,0,null,0,null,0,null,0,null,"",null,0,0]
[0,0,null,null,null,null,null,null,null,"","",null,null,null,null,null,null,null,null,null,null,null,null,null,null,null,null,null,null,null,null,null,null,null,null,null,null,null,null,null,null,null,null,null,null,null,0,0,0,0,0,null,0,null,0,null,0,null,0,null,"",null,0,0,0,0,0,null,0,null,0,null,0,null,0,null,"",null,0,0]
[0,0,null,null,null,null,null,null,null,"","",null,null,null,null,null,null,null,null,null,null,null,null,null,null,null,null,null,null,null,null,null,null,null,null,null,null,null,null,null,null,null,null,null,null,null,0,0,0,0,0,null,0,null,0,null,0,null,0,null,"",null,0,0,0,0,0,null,0,null,0,null,0,null,0,null,"",null,0,0]
[0,0,null,null,null,null,null,null,null,"","",null,null,null,null,null,null,null,null,null,null,null,null,null,null,null,null,null,null,null,null,null,null,null,null,null,null,null,null,null,null,null,null,null,null,null,0,0,0,0,0,null,0,null,0,null,0,null,0,null,"",null,0,0,0,0,0,null,0,null,0,null,0,null,0,null,"",null,0,0]
[0,0,null,null,null,null,null,null,null,"","",null,null,null,null,null,null,null,null,null,null,null,null,null,null,null,null,null,null,null,null,null,null,null,null,null,null,null,null,null,null,null,null,null,null,null,0,0,0,0,0,null,0,null,0,null,0,null,0,null,"",null,0,0,0,0,0,null,0,null,0,null,0,null,0,null,"",null,0,0]
[0,0,null,null,null,null,null,null,null,"","",null,null,null,null,null,null,null,null,null,null,null,null,null,null,null,null,null,null,null,null,null,null,null,null,null,null,null,null,null,null,null,null,null,null,null,0,0,0,0,0,null,0,null,0,null,0,null,0,null,"",null,0,0,0,0,0,null,0,null,0,null,0,null,0,null,"",null,0,0]
[0,0,null,null,null,null,null,null,null,"","",null,null,null,null,null,null,null,null,null,null,null,null,null,null,null,null,null,null,null,null,null,null,null,null,null,null,null,null,null,null,null,null,null,null,null,0,0,0,0,0,null,0,null,0,null,0,null,0,null,"",null,0,0,0,0,0,null,0,null,0,null,0,null,0,null,"",null,0,0]
[0,0,null,null,null,null,null,null,null,"","",null,null,null,null,null,null,null,null,null,null,null,null,null,null,null,null,null,null,null,null,null,null,null,null,null,null,null,null,null,null,null,null,null,null,null,0,0,0,0,0,null,0,null,0,null,0,null,0,null,"",null,0,0,0,0,0,null,0,null,0,null,0,null,0,null,"",null,0,0]
[0,0,null,null,null,null,null,null,null,"","",null,null,null,null,null,null,null,null,null,null,null,null,null,null,null,null,null,null,null,null,null,null,null,null,null,null,null,null,null,null,null,null,null,null,null,0,0,0,0,0,null,0,null,0,null,0,null,0,null,"",null,0,0,0,0,0,null,0,null,0,null,0,null,0,null,"",null,0,0]
[0,0,null,null,null,null,null,null,null,"","",null,null,null,null,null,null,null,null,null,null,null,null,null,null,null,null,null,null,null,null,null,null,null,null,null,null,null,null,null,null,null,null,null,null,null,0,0,0,0,0,null,0,null,0,null,0,null,0,null,"",null,0,0,0,0,0,null,0,null,0,null,0,null,0,null,"",null,0,0]
[0,0,null,null,null,null,null,null,null,"","",null,null,null,null,null,null,null,null,null,null,null,null,null,null,null,null,null,null,null,null,null,null,null,null,null,null,null,null,null,null,null,null,null,null,null,0,0,0,0,0,null,0,null,0,null,0,null,0,null,"",null,0,0,0,0,0,null,0,null,0,null,0,null,0,null,"",null,0,0]
[0,0,null,null,null,null,null,null,null,"","",null,null,null,null,null,null,null,null,null,null,null,null,null,null,null,null,null,null,null,null,null,null,null,null,null,null,null,null,null,null,null,null,null,null,null,0,0,0,0,0,null,0,null,0,null,0,null,0,null,"",null,0,0,0,0,0,null,0,null,0,null,0,null,0,null,"",null,0,0]
[0,0,null,null,null,null,null,null,null,"","",null,null,null,null,null,null,null,null,null,null,null,null,null,null,null,null,null,null,null,null,null,null,null,null,null,null,null,null,null,null,null,null,null,null,null,0,0,0,0,0,null,0,null,0,null,0,null,0,null,"",null,0,0,0,0,0,null,0,null,0,null,0,null,0,null,"",null,0,0]
[0,0,null,null,null,null,null,null,null,"","",null,null,null,null,null,null,null,null,null,null,null,null,null,null,null,null,null,null,null,null,null,null,null,null,null,null,null,null,null,null,null,null,null,null,null,0,0,0,0,0,null,0,null,0,null,0,null,0,null,"",null,0,0,0,0,0,null,0,null,0,null,0,null,0,null,"",null,0,0]
[0,0,null,null,null,null,null,null,null,"","",null,null,null,null,null,null,null,null,null,null,null,null,null,null,null,null,null,null,null,null,null,null,null,null,null,null,null,null,null,null,null,null,null,null,null,0,0,0,0,0,null,0,null,0,null,0,null,0,null,"",null,0,0,0,0,0,null,0,null,0,null,0,null,0,null,"",null,0,0]
[0,0,null,null,null,null,null,null,null,"","",null,null,null,null,null,null,null,null,null,null,null,null,null,null,null,null,null,null,null,null,null,null,null,null,null,null,null,null,null,null,null,null,null,null,null,0,0,0,0,0,null,0,null,0,null,0,null,0,null,"",null,0,0,0,0,0,null,0,null,0,null,0,null,0,null,"",null,0,0]
[{"$f":"$H$2","v":0},{"$f":"$H$3","v":0},null,null,null,null,null,null,null,"",{"$f":"IF(AA40<>\"\",IFERROR(VLOOKUP(E40&LEFT(J40,2)&H40,choix_poids,2),\"\"),\"\")","v":""},null,null,null,null,null,null,null,null,null,null,null,null,null,null,null,null,null,null,null,null,null,null,null,null,null,null,null,null,null,null,null,null,null,null,null,{"$f":"IF($E40=\"M\",IF(ISERROR(SEARCH(LEFT($J40,2),M$6,1)),0,IF($J40<>\"\",IF(LEFT($J40,2)<>\"MI\",1,CHOOSE(AU$5,1,$CA40,$CB40)),\"\")),0)","v":0},{"$f":"IF($E40=\"M\",IF(ISERROR(SEARCH(LEFT($J40,2),N$6,1)),0,IF($J40<>\"\",IF(LEFT($J40,2)<>\"MI\",1,CHOOSE(AV$5,1,$CA40,$CB40)),\"\")),0)","v":0},{"$f":"IF($E40=\"M\",IF(ISERROR(SEARCH(LEFT($J40,2),O$6,1)),0,IF($J40<>\"\",IF(LEFT($J40,2)<>\"MI\",1,CHOOSE(AW$5,1,$CA40,$CB40)),\"\")),0)","v":0},{"$f":"IF($E40=\"M\",IF(ISERROR(SEARCH(LEFT($J40,2),P$6,1)),0,IF($J40<>\"\",IF(LEFT($J40,2)<>\"MI\",1,CHOOSE(AX$5,1,$CA40,$CB40)),\"\")),0)","v":0},{"$f":"IF($E40=\"M\",IF(ISERROR(SEARCH(LEFT($J40,2),Q$6,1)),0,IF($J40<>\"\",IF(LEFT($J40,2)<>\"MI\",1,CHOOSE(AY$5,1,$CA40,$CB40)),\"\")),0)","v":0},null,{"$f":"IF($E40=\"M\",IF(ISERROR(SEARCH(LEFT($J40,2),S$6,1)),0,IF($J40<>\"\",IF(LEFT($J40,2)<>\"MI\",1,CHOOSE(BA$5,1,$CA40,$CB40)),\"\")),0)","v":0},null,{"$f":"IF($E40=\"M\",IF(ISERROR(SEARCH(LEFT($J40,2),U$6,1)),0,IF($J40<>\"\",IF(LEFT($J40,2)<>\"MI\",1,CHOOSE(BC$5,1,$CA40,$CB40)),\"\")),0)","v":0},null,{"$f":"IF($E40=\"M\",IF(ISERROR(SEARCH(LEFT($J40,2),W$6,1)),0,IF($J40<>\"\",IF(LEFT($J40,2)<>\"MI\",1,CHOOSE(BE$5,1,$CA40,$CB40)),\"\")),0)","v":0},null,0,null,{"$f":"IF(ISERROR(SEARCH(LEFT($J40,2),AA$6,1)),0,IF($J40<>\"\",IF(LEFT($J40,2)<>\"MI\",1,CHOOSE(BI$5,1,$CA40,$CB40)),\"\"))","v":""},null,{"$f":"IF($E40=\"F\",IF(ISERROR(SEARCH(LEFT($J40,2),AC$6,1)),0,IF($J40<>\"\",IF(LEFT($J40,2)<>\"MI\",1,CHOOSE(BK$5,1,$CA40,$CB40)),\"\")),0)","v":0},{"$f":"IF($E40=\"F\",IF(ISERROR(SEARCH(LEFT($J40,2),AD$6,1)),0,IF($J40<>\"\",IF(LEFT($J40,2)<>\"MI\",1,CHOOSE(BL$5,1,$CA40,$CB40)),\"\")),0)","v":0},{"$f":"IF($E40=\"F\",IF(ISERROR(SEARCH(LEFT($J40,2),AE$6,1)),0,IF($J40<>\"\",IF(LEFT($J40,2)<>\"MI\",1,CHOOSE(BM$5,1,$CA40,$CB40)),\"\")),0)","v":0},{"$f":"IF($E40=\"F\",IF(ISERROR(SEARCH(LEFT($J40,2),AF$6,1)),0,IF($J40<>\"\",IF(LEFT($J40,2)<>\"MI\",1,CHOOSE(BN$5,1,$CA40,$CB40)),\"\")),0)","v":0},{"$f":"IF($E40=\"F\",IF(ISERROR(SEARCH(LEFT($J40,2),AG$6,1)),0,IF($J40<>\"\",IF(LEFT($J40,2)<>\"MI\",1,CHOOSE(BO$5,1,$CA40,$CB40)),\"\")),0)","v":0},null,{"$f":"IF($E40=\"F\",IF(ISERROR(SEARCH(LEFT($J40,2),AI$6,1)),0,IF($J40<>\"\",IF(LEFT($J40,2)<>\"MI\",1,CHOOSE(BQ$5,1,$CA40,$CB40)),\"\")),0)","v":0},null,{"$f":"IF($E40=\"F\",IF(ISERROR(SEARCH(LEFT($J40,2),AK$6,1)),0,IF($J40<>\"\",IF(LEFT($J40,2)<>\"MI\",1,CHOOSE(BS$5,1,$CA40,$CB40)),\"\")),0)","v":0},null,{"$f":"IF($E40=\"F\",IF(ISERROR(SEARCH(LEFT($J40,2),AM$6,1)),0,IF($J40<>\"\",IF(LEFT($J40,2)<>\"MI\",1,CHOOSE(BU$5,1,$CA40,$CB40)),\"\")),0)","v":0},null,{"$f":"IF($E40=\"F\",IF(ISERROR(SEARCH(LEFT($J40,2),AO$6,1)),0,IF($J40<>\"\",IF(LEFT($J40,2)<>\"MI\",1,CHOOSE(BW$5,1,$CA40,$CB40)),\"\")),0)","v":0},null,{"$f":"IF(ISERROR(SEARCH(LEFT($J40,2),AQ$6,1)),0,IF($J40<>\"\",IF(LEFT($J40,2)<>\"MI\",1,CHOOSE(BY$5,1,$CA40,$CB40)),\"\"))","v":""},null,0,0]
[0,0,null,null,null,null,null,null,null,"","",null,null,null,null,null,null,null,null,null,null,null,null,null,null,null,null,null,null,null,null,null,null,null,null,null,null,null,null,null,null,null,null,null,null,null,0,0,0,0,0,null,0,null,0,null,0,null,0,null,"",null,0,0,0,0,0,null,0,null,0,null,0,null,0,null,"",null,0,0]
[0,0,null,null,null,null,null,null,null,"","",null,null,null,null,null,null,null,null,null,null,null,null,null,null,null,null,null,null,null,null,null,null,null,null,null,null,null,null,null,null,null,null,null,null,null,0,0,0,0,0,null,0,null,0,null,0,null,0,null,"",null,0,0,0,0,0,null,0,null,0,null,0,null,0,null,"",null,0,0]
[0,0,null,null,null,null,null,null,null,"","",null,null,null,null,null,null,null,null,null,null,null,null,null,null,null,null,null,null,null,null,null,null,null,null,null,null,null,null,null,null,null,null,null,null,null,0,0,0,0,0,null,0,null,0,null,0,null,0,null,"",null,0,0,0,0,0,null,0,null,0,null,0,null,0,null,"",null,0,0]
[0,0,null,null,null,null,null,null,null,"","",null,null,null,null,null,null,null,null,null,null,null,null,null,null,null,null,null,null,null,null,null,null,null,null,null,null,null,null,null,null,null,null,null,null,null,0,0,0,0,0,null,0,null,0,null,0,null,0,null,"",null,0,0,0,0,0,null,0,null,0,null,0,null,0,null,"",null,0,0]
[0,0,null,null,null,null,null,null,null,"","",null,null,null,null,null,null,null,null,null,null,null,null,null,null,null,null,null,null,null,null,null,null,null,null,null,null,null,null,null,null,null,null,null,null,null,0,0,0,0,0,null,0,null,0,null,0,null,0,null,"",null,0,0,0,0,0,null,0,null,0,null,0,null,0,null,"",null,0,0]
[0,0,null,null,null,null,null,null,null,"","",null,null,null,null,null,null,null,null,null,null,null,null,null,null,null,null,null,null,null,null,null,null,null,null,null,null,null,null,null,null,null,null,null,null,null,0,0,0,0,0,null,0,null,0,null,0,null,0,null,"",null,0,0,0,0,0,null,0,null,0,null,0,null,0,null,"",null,0,0]
[0,0,null,null,null,null,null,null,null,"","",null,null,null,null,null,null,null,null,null,null,null,null,null,null,null,null,null,null,null,null,null,null,null,null,null,null,null,null,null,null,null,null,null,null,null,0,0,0,0,0,null,0,null,0,null,0,null,0,null,"",null,0,0,0,0,0,null,0,null,0,null,0,null,0,null,"",null,0,0]
[0,0,null,null,null,null,null,null,null,"","",null,null,null,null,null,null,null,null,null,null,null,null,null,null,null,null,null,null,null,null,null,null,null,null,null,null,null,null,null,null,null,null,null,null,null,0,0,0,0,0,null,0,null,0,null,0,null,0,null,"",null,0,0,0,0,0,null,0,null,0,null,0,null,0,null,"",null,0,0]
[0,0,null,null,null,null,null,null,null,"","",null,null,null,null,null,null,null,null,null,null,null,null,null,null,null,null,null,null,null,null,null,null,null,null,null,null,null,null,null,null,null,null,null,null,null,0,0,0,0,0,null,0,null,0,null,0,null,0,null,"",null,0,0,0,0,0,null,0,null,0,null,0,null,0,null,"",null,0,0]
[0,0,null,null,null,null,null,null,null,"","",null,null,null,null,null,null,null,null,null,null,null,null,null,null,null,null,null,null,null,null,null,null,null,null,null,null,null,null,null,null,null,null,null,null,null,0,0,0,0,0,null,0,null,0,null,0,null,0,null,"",null,0,0,0,0,0,null,0,null,0,null,0,null,0,null,"",null,0,0]
[0,0,null,null,null,null,null,null,null,"","",null,null,null,null,null,null,null,null,null,null,null,null,null,null,null,null,null,null,null,null,null,null,null,null,null,null,null,null,null,null,null,null,null,null,null,0,0,0,0,0,null,0,null,0,null,0,null,0,null,"",null,0,0,0,0,0,null,0,null,0,null,0,null,0,null,"",null,0,0]
[0,0,null,null,null,null,null,null,null,"","",null,null,null,null,null,null,null,null,null,null,null,null,null,null,null,null,null,null,null,null,null,null,null,null,null,null,null,null,null,null,null,null,null,null,null,0,0,0,0,0,null,0,null,0,null,0,null,0,null,"",null,0,0,0,0,0,null,0,null,0,null,0,null,0,null,"",null,0,0]
[0,0,null,null,null,null,null,null,null,"","",null,null,null,null,null,null,null,null,null,null,null,null,null,null,null,null,null,null,null,null,null,null,null,null,null,null,null,null,null,null,null,null,null,null,null,0,0,0,0,0,null,0,null,0,null,0,null,0,null,"",null,0,0,0,0,0,null,0,null,0,null,0,null,0,null,"",null,0,0]
[0,0,null,null,null,null,null,null,null,"","",null,null,null,null,null,null,null,null,null,null,null,null,null,null,null,null,null,null,null,null,null,null,null,null,null,null,null,null,null,null,null,null,null,null,null,0,0,0,0,0,null,0,null,0,null,0,null,0,null,"",null,0,0,0,0,0,null,0,null,0,null,0,null,0,null,"",null,0,0]
[0,0,null,null,null,null,null,null,null,"","",null,null,null,null,null,null,null,null,null,null,null,null,null,null,null,null,null,null,null,null,null,null,null,null,null,null,null,null,null,null,null,null,null,null,null,0,0,0,0,0,null,0,null,0,null,0,null,0,null,"",null,0,0,0,0,0,null,0,null,0,null,0,null,0,null,"",null,0,0]
[0,0,null,null,null,null,null,null,null,"","",null,null,null,null,null,null,null,null,null,null,null,null,null,null,null,null,null,null,null,null,null,null,null,null,null,null,null,null,null,null,null,null,null,null,null,0,0,0,0,0,null,0,null,0,null,0,null,0,null,"",null,0,0,0,0,0,null,0,null,0,null,0,null,0,null,"",null,0,0]
[0,0,null,null,null,null,null,null,null,"","",null,null,null,null,null,null,null,null,null,null,null,null,null,null,null,null,null,null,null,null,null,null,null,null,null,null,null,null,null,null,null,null,null,null,null,0,0,0,0,0,null,0,null,0,null,0,null,0,null,"",null,0,0,0,0,0,null,0,null,0,null,0,null,0,null,"",null,0,0]
[0,0,null,null,null,null,null,null,null,"","",null,null,null,null,null,null,null,null,null,null,null,null,null,null,null,null,null,null,null,null,null,null,null,null,null,null,null,null,null,null,null,null,null,null,null,0,0,0,0,0,null,0,null,0,null,0,null,0,null,"",null,0,0,0,0,0,null,0,null,0,null,0,null,0,null,"",null,0,0]
[0,0,null,null,null,null,null,null,null,"","",null,null,null,null,null,null,null,null,null,null,null,null,null,null,null,null,null,null,null,null,null,null,null,null,null,null,null,null,null,null,null,null,null,null,null,0,0,0,0,0,null,0,null,0,null,0,null,0,null,"",null,0,0,0,0,0,null,0,null,0,null,0,null,0,null,"",null,0,0]
[0,0,null,null,null,null,null,null,null,"","",null,null,null,null,null,null,null,null,null,null,null,null,null,null,null,null,null,null,null,null,null,null,null,null,null,null,null,null,null,null,null,null,null,null,null,0,0,0,0,0,null,0,null,0,null,0,null,0,null,"",null,0,0,0,0,0,null,0,null,0,null,0,null,0,null,"",null,0,0]
[0,0,null,null,null,null,null,null,null,"","",null,null,null,null,null,null,null,null,null,null,null,null,null,null,null,null,null,null,null,null,null,null,null,null,null,null,null,null,null,null,null,null,null,null,null,0,0,0,0,0,null,0,null,0,null,0,null,0,null,"",null,0,0,0,0,0,null,0,null,0,null,0,null,0,null,"",null,0,0]
[0,0,null,null,null,null,null,null,null,"","",null,null,null,null,null,null,null,null,null,null,null,null,null,null,null,null,null,null,null,null,null,null,null,null,null,null,null,null,null,null,null,null,null,null,null,0,0,0,0,0,null,0,null,0,null,0,null,0,null,"",null,0,0,0,0,0,null,0,null,0,null,0,null,0,null,"",null,0,0]
[0,0,null,null,null,null,null,null,null,"","",null,null,null,null,null,null,null,null,null,null,null,null,null,null,null,null,null,null,null,null,null,null,null,null,null,null,null,null,null,null,null,null,null,null,null,0,0,0,0,0,null,0,null,0,null,0,null,0,null,"",null,0,0,0,0,0,null,0,null,0,null,0,null,0,null,"",null,0,0]
[0,0,null,null,null,null,null,null,null,"","",null,null,null,null,null,null,null,null,null,null,null,null,null,null,null,null,null,null,null,null,null,null,null,null,null,null,null,null,null,null,null,null,null,null,null,0,0,0,0,0,null,0,null,0,null,0,null,0,null,"",null,0,0,0,0,0,null,0,null,0,null,0,null,0,null,"",null,0,0]

{"sheet":"Base-INFO","index":2,"n_rows":101,"n_cols":26,"rows_kept":101,"cut":false,"hidden":true,"merged":[]}
[null,"Grade",null,"Age",null,"Poids",null,"Club",null,"NAISSANCE","Catégorie",null,"SEXE","POIDS","CATE","compil","Catégorie","CB",null,null,null,null,null,null,null,{"$f":"TODAY()","v":"2022-04-11"}]
[null,"-",null,"-",null,"_",null,"_",null,1917,"VETERAN",null,"F",null,"BE",{"$f":"M2&O2&N2","v":"FBE"},"Pas connu"]
[null,"BC",null,"MPOUSSIN",null,"Moins de 25 kg",null,"Ajac",null,1918,"VETERAN",null,"F",20,"BE","FBE20","Moins de 30 kg","18"]
[null,"BC 1",null,"POUSSIN",null,"Moins de 30 kg",null,"Bert",null,1919,"VETERAN",null,"F",29,"BE","FBE29","Moins de 30 kg","18"]
[null,"BC 2",null,"PUPILLE",null,"Moins de 35 kg",null,"Boul",null,1920,"VETERAN",null,"F",30,"BE","FBE30","Moins de 35 kg","19"]
[null,"BC 3",null,"BENJAMIN",null,"Moins de 40 kg",null,"Brie",null,1921,"VETERAN",null,"F",35,"BE","FBE35","Moins de 40 kg","21"]
[null,"BF 1",null,"MINIME",null,"Moins de 45 kg",null,"Buss",null,1922,"VETERAN",null,"F",40,"BE","FBE40","Moins de 45 kg","23"]
[null,"BF 2",null,"CADET",null,"Moins de 50 kg",null,"Chev",null,1923,"VETERAN",null,"F",45,"BE","FBE45","Moins de 50 kg","25"]
[null,"BF 3",null,"JUNIOR",null,"Moins de 55 kg",null,"Crua",null,1924,"VETERAN",null,"F",50,"BE","FBE50","50 kg et plus","26"]
[null,"C J",null,"SENIOR",null,"Moins de 60 kg",null,"Emer",null,1925,"VETERAN",null,"F",99,"BE","FBE99","50 kg et plus","26"]
[null,null,null,"Tous",null,"Moins de 65 kg",null,"Lesi",null,1926,"VETERAN",null,"F",null,"MI","FMI","Pas connu"]
[null,null,null,null,null,"Moins de 70 kg",null,"Lina",null,1927,"VETERAN",null,"F",20,"MI","FMI20","Moins de 40 kg","21"]
[null,null,null,null,null,"Moins de 75 kg",null,"Mars",null,1928,"VETERAN",null,"F",39,"MI","FMI39","Moins de 40 kg","21"]
[null,null,null,null,null,"35 kg et plus",null,"Mart",null,1929,"VETERAN",null,"F",40,"MI","FMI40","Moins de 45 kg","23"]
[null,null,null,null,null,"40 kg et plus",null,"Nois",null,1930,"VETERAN",null,"F",45,"MI","FMI45","Moins de 50 kg","25"]
[null,null,null,null,null,"45 kg et plus",null,"Ozoi",null,1931,"VETERAN",null,"F",50,"MI","FMI50","Moins de 55 kg","27"]
[null,null,null,null,null,"50 kg et plus",null,"Prec",null,1932,"VETERAN",null,"F",55,"MI","FMI55","55 kg et plus","28"]
[null,null,null,null,null,"55 kg et plus",null,"Rois",null,1933,"VETERAN",null,"F",99,"MI","FMI99","55 kg et plus","28"]
[null,null,null,null,null,"60 kg et plus",null,"Vars",null,1934,"VETERAN",null,"F",null,"MP","FMP","Pas connu"]
[null,null,null,null,null,"65 kg et plus",null,"Tous",null,1935,"VETERAN",null,"F",20,"MP","FMP20","Moins de 25 kg","17"]
[null,null,null,null,null,"70 kg et plus",null,null,null,1936,"VETERAN",null,"F",24,"MP","FMP24","Moins de 25 kg","17"]
[null,null,null,null,null,"75 kg et plus",null,null,null,1937,"VETERAN",null,"F",25,"MP","FMP25","Moins de 30 kg","18"]
[null,null,null,null,null,"Tous",null,null,null,1938,"VETERAN",null,"F",30,"MP","FMP30","Moins de 35 kg","19"]
[null,null,null,null,null,null,null,null,null,1939,"VETERAN",null,"F",35,"MP","FMP35","35 kg et plus","20"]
[null,null,null,null,null,null,null,null,null,1940,"VETERAN",null,"F",99,"MP","FMP99","35 kg et plus","20"]
[null,null,null,null,null,null,null,null,null,1941,"VETERAN",null,"F",null,"PO","FPO","Pas connu"]
[null,null,null,null,null,null,null,null,null,1942,"VETERAN",null,"F",20,"PO","FPO20","Moins de 25 kg","17"]
[null,null,null,null,null,null,null,null,null,1943,"VETERAN",null,"F",24,"PO","FPO24","Moins de 25 kg","17"]
[null,null,null,null,null,null,null,null,null,1944,"VETERAN",null,"F",25,"PO","FPO25","Moins de 30 kg","18"]
[null,null,null,null,null,null,null,null,null,1945,"VETERAN",null,"F",30,"PO","FPO30","Moins de 35 kg","19"]
[null,null,null,null,null,null,null,null,null,1946,"VETERAN",null,"F",35,"PO","FPO35","Moins de 40 kg","21"]
[null,null,null,null,null,null,null,null,null,1947,"VETERAN",null,"F",40,"PO","FPO40","40 kg et plus","22"]
[null,null,null,null,null,null,null,null,null,1948,"VETERAN",null,"F",99,"PO","FPO99","40 kg et plus","22"]
[null,null,null,null,null,null,null,null,null,1949,"VETERAN",null,"F",null,"PU","FPU","Pas connu"]
[null,null,null,null,null,null,null,null,null,1950,"VETERAN",null,"F",20,"PU","FPU20","Moins de 25 kg","17"]
[null,null,null,null,null,null,null,null,null,1951,"VETERAN",null,"F",24,"PU","FPU24","Moins de 25 kg","17"]
[null,null,null,null,null,null,null,null,null,1952,"VETERAN",null,"F",25,"PU","FPU25","Moins de 30 kg","18"]
[null,null,null,null,null,null,null,null,null,1953,"VETERAN",null,"F",30,"PU","FPU30","Moins de 35 kg","19"]
[null,null,null,null,null,null,null,null,null,1954,"VETERAN",null,"F",35,"PU","FPU35","Moins de 40 kg","21"]
[null,null,null,null,null,null,null,null,null,1955,"VETERAN",null,"F",40,"PU","FPU40","Moins de 45 kg","23"]
[null,null,null,null,null,null,null,null,null,1956,"VETERAN",null,"F",45,"PU","FPU45","45 kg et plus","24"]
[null,null,null,null,null,null,null,null,null,1957,"VETERAN",null,"F",99,"PU","FPU99","45 kg et plus","24"]
[null,null,null,null,null,null,null,null,null,1958,"VETERAN",null,"M",null,"BE","MBE","Pas connu"]
[null,null,null,null,null,null,null,null,null,1959,"VETERAN",null,"M",20,"BE","MBE20","Moins de 30 kg","02"]
[null,null,null,null,null,null,null,null,null,1960,"VETERAN",null,"M",29,"BE","MBE29","Moins de 30 kg","02"]
[null,null,null,null,null,null,null,null,null,1961,"VETERAN",null,"M",30,"BE","MBE30","Moins de 35 kg","03"]
[null,null,null,null,null,null,null,null,null,1962,"VETERAN",null,"M",35,"BE","MBE35","Moins de 40 kg","04"]
[null,null,null,null,null,null,null,null,null,1963,"VETERAN",null,"M",40,"BE","MBE40","Moins de 45 kg","06"]
[null,null,null,null,null,null,null,null,null,1964,"VETERAN",null,"M",45,"BE","MBE45","Moins de 50 kg","08"]
[null,null,null,null,null,null,null,null,null,1965,"VETERAN",null,"M",50,"BE","MBE50","Moins de 55 kg","10"]
[null,null,null,null,null,null,null,null,null,1966,"VETERAN",null,"M",55,"BE","MBE55","55 kg et plus","11"]
[null,null,null,null,null,null,null,null,null,1967,"VETERAN",null,"M",99,"BE","MBE99","55 kg et plus","11"]
[null,null,null,null,null,null,null,null,null,1968,"VETERAN",null,"M",null,"MI","MMI","Pas connu"]
[null,null,null,null,null,null,null,null,null,1969,"VETERAN",null,"M",20,"MI","MMI20","Moins de 40 kg","04"]
[null,null,null,null,null,null,null,null,null,1970,"VETERAN",null,"M",39,"MI","MMI39","Moins de 40 kg","04"]
[null,null,null,null,null,null,null,null,null,1971,"VETERAN",null,"M",40,"MI","MMI40","Moins de 45 kg","06"]
[null,null,null,null,null,null,null,null,null,1972,"VETERAN",null,"M",45,"MI","MMI45","Moins de 50 kg","08"]
[null,null,null,null,null,null,null,null,null,1973,"VETERAN",null,"M",50,"MI","MMI50","Moins de 55 kg","10"]
[null,null,null,null,null,null,null,null,null,1974,"VETERAN",null,"M",55,"MI","MMI55","Moins de 60 kg","12"]
[null,null,null,null,null,null,null,null,null,1975,"VETERAN",null,"M",60,"MI","MMI60","Moins de 65 kg","13"]
[null,null,null,null,null,null,null,null,null,1976,"VETERAN",null,"M",65,"MI","MMI65","65 kg et plus","14"]
[null,null,null,null,null,null,null,null,null,1977,"VETERAN",null,"M",99,"MI","MMI99","65 kg et plus","14"]
[null,null,null,null,null,null,null,null,null,1978,"VETERAN",null,"M",null,"MP","MMP","Pas connu"]
[null,null,null,null,null,null,null,null,null,1979,"VETERAN",null,"M",20,"MP","MMP20","Moins de 25 kg","01"]
[null,null,null,null,null,null,null,null,null,1980,"VETERAN",null,"M",24,"MP","MMP24","Moins de 25 kg","01"]
[null,null,null,null,null,null,null,null,null,1981,"VETERAN",null,"M",25,"MP",{"$f":"M66&O66&N66","v":"MMP25"},"Moins de 30 kg","02"]
[null,null,null,null,null,null,null,null,null,1982,"VETERAN",null,"M",30,"MP","MMP30","Moins de 35 kg","03"]
[null,null,null,null,null,null,null,null,null,1983,"VETERAN",null,"M",35,"MP","MMP35","Moins de 40 kg","04"]
[null,null,null,null,null,null,null,null,null,1984,"VETERAN",null,"M",40,"MP","MMP40","40 kg et plus","05"]
[null,null,null,null,null,null,null,null,null,1985,"VETERAN",null,"M",99,"MP","MMP99","40 kg et plus","05"]
[null,null,null,null,null,null,null,null,null,1986,"VETERAN",null,"M",null,"PO","MPO","Pas connu"]
[null,null,null,null,null,null,null,null,null,1987,"SENIOR",null,"M",20,"PO","MPO20","Moins de 25 kg","01"]
[null,null,null,null,null,null,null,null,null,1988,"SENIOR",null,"M",24,"PO","MPO24","Moins de 25 kg","01"]
[null,null,null,null,null,null,null,null,null,1989,"SENIOR",null,"M",25,"PO","MPO25","Moins de 30 kg","02"]
[null,null,null,null,null,null,null,null,null,1990,"SENIOR",null,"M",30,"PO","MPO30","Moins de 35 kg","03"]
[null,null,null,null,null,null,null,null,null,1991,"SENIOR",null,"M",35,"PO","MPO35","Moins de 40 kg","04"]
[null,null,null,null,null,null,null,null,null,1992,"SENIOR",null,"M",40,"PO","MPO40","Moins de 45 kg","06"]
[null,null,null,null,null,null,null,null,null,1993,"SENIOR",null,"M",45,"PO","MPO45","45 kg et plus","07"]
[null,null,null,null,null,null,null,null,null,1994,"SENIOR",null,"M",99,"PO","MPO99","45 kg et plus","07"]
[null,null,null,null,null,null,null,null,null,1995,"SENIOR",null,"M",null,"PU","MPU","Pas connu"]
[null,null,null,null,null,null,null,null,null,1996,"SENIOR",null,"M",20,"PU","MPU20","Moins de 25 kg","01"]
[null,null,null,null,null,null,null,null,null,1997,"SENIOR",null,"M",24,"PU","MPU24","Moins de 25 kg","01"]
[null,null,null,null,null,null,null,null,null,1998,"SENIOR",null,"M",25,"PU","MPU25","Moins de 30 kg","02"]
[null,null,null,null,null,null,null,null,null,1999,"SENIOR",null,"M",30,"PU","MPU30","Moins de 35 kg","03"]
[null,null,null,null,null,null,null,null,null,2000,"SENIOR",null,"M",35,"PU","MPU35","Moins de 40 kg","04"]
[null,null,null,null,null,null,null,null,null,2001,"SENIOR",null,"M",40,"PU","MPU40","Moins de 45 kg","06"]
[null,null,null,null,null,null,null,null,null,2002,"SENIOR",null,"M",45,"PU","MPU45","Moins de 50 kg","08"]
[null,null,null,null,null,null,null,null,null,2003,"SENIOR",null,"M",50,"PU","MPU50","50 kg et plus","09"]
[null,null,null,null,null,null,null,null,null,2004,"JUNIOR",null,"M",99,"PU","MPU99","50 kg et plus","09"]
[null,null,null,null,null,null,null,null,null,2005,"JUNIOR"]
[null,null,null,null,null,null,null,null,null,2006,"CADET"]
[null,null,null,null,null,null,null,null,null,2007,"CADET"]
[null,null,null,null,null,null,null,null,null,2008,"MINIME"]
[null,null,null,null,null,null,null,null,null,2009,"MINIME"]
[null,null,null,null,null,null,null,null,null,2010,"BENJAMIN"]
[null,null,null,null,null,null,null,null,null,2011,"BENJAMIN"]
[null,null,null,null,null,null,null,null,null,2012,"PUPILLE"]
[null,null,null,null,null,null,null,null,null,2013,"PUPILLE"]
[null,null,null,null,null,null,null,null,null,2014,"POUSSIN"]
[null,null,null,null,null,null,null,null,null,2015,"POUSSIN"]
[null,null,null,null,null,null,null,null,null,2016,"MPOUSSIN"]